Cogmind - Beta 13 @@@ ROGUE MODE // 2024.04.18 @ 15:48:16 Player: Red_Zig Result: Destroyed by W9-WVL(R) with Subdweller Laser Performance ------------- Evolutions (0) 0 Regions Visited (2) 400 Robots Destroyed (21) 105 Value Destroyed (520) 520 Prototype IDs (0) 0 Alien Tech Used (0) 0 Bonus (0) 0 TOTAL SCORE: 1025 Bonus ------- None Cogmind --------- Core Integrity 0/250 Matter 235/300 Energy 250/250 System Corruption 0% Temperature Cool (6) Movement Walking (190) Ox1 Location -10/Subcaves Parts ------- > --- POWER (1) -------- Ion Engine > --- PROPULSION (2) --- Aluminum Leg > --- UTILITY (2) ------ Medium Storage Unit Signal Interpreter > --- WEAPON (2) ------- (None) > --- INVENTORY (10) --- Wheel Compact Wheel Small Storage Unit Large Storage Unit Structural Scanner EM Pulse Gun Medium Laser Light Assault Rifle Light Assault Rifle Mining Laser Peak State ------------ > --- POWER ------------ Ion Engine > --- PROPULSION ------- Light Treads Light Treads > --- UTILITY ---------- Small Storage Unit Structural Scanner > --- WEAPON ----------- Beam Rifle Light Assault Rifle > --- INVENTORY -------- Ion Engine Aluminum Leg Aluminum Leg Wheel Compact Wheel EM Pulse Gun Medium Laser [Rating: 8] Favorites ----------- Power Ion Engine Engine Ion Engine Propulsion Aluminum Leg Treads Light Treads Leg Aluminum Leg Utility Medium Storage Unit Device Structural Scanner Storage Medium Storage Unit Processor Signal Interpreter Weapon Light Assault Rifle Energy Gun Medium Laser Ballistic Gun Light Assault Rifle Launcher Grenade Launcher Special Weapon Mining Laser Build | -11 -10 -10 ------- Run | Yrd Mat Sub Slots Evolved . | . . . Power . | . . . Propulsion . | . . . Utility . | . . . Weapon . | . . . Parts Attached 20 | 6 10 4 Power 2 | 1 1 . Engine 2 | 1 1 . Core . | . . . Reactor . | . . . Propulsion 4 | 2 2 . Treads 2 | 2 . . Leg 2 | . 2 . Wheel . | . . . Hover . | . . . Flight . | . . . Utility 4 | 1 3 . Device 1 | . 1 . Storage 2 | 1 1 . Processor 1 | . 1 . Hackware . | . . . Protection . | . . . Artifact . | . . . Weapon 10 | 2 4 4 Energy Gun 5 | 1 3 1 Energy Cannon . | . . . Ballistic Gun 2 | 1 1 . Ballistic Cannon . | . . . Launcher 2 | . . 2 Special Weapon 1 | . . 1 Impact Weapon . | . . . Slashing Weapon . | . . . Piercing Weapon . | . . . Special Melee Weapon . | . . . Unidentified Prototypes . | . . . Parts Lost 7 | . 4 3 Power 1 | . 1 . Propulsion 3 | . 2 1 Utility . | . . . Weapon 3 | . 1 2 Highest Loss Streak 3 | . 2 3 To Critical Strikes . | . . . Average Slot Usage (%) 97 | . 97 98 Engine 13 | . 13 14 Treads 10 | . 12 . Leg 17 | . 15 27 Device 7 | . 8 . Storage 14 | . 14 14 Processor 4 | . 3 14 Energy Gun 13 | . 13 9 Ballistic Gun 13 | . 14 10 Naked Turns . | . . . Heaviest Build 21 | 13 20 21 Greatest Support 40 | 40 40 20 Greatest Overweight (x) 2 | . . 2 Average Overweight (x) . | . . . Largest Inventory Capacity 10 | 8 10 10 Average Capacity 9 | 7 9 10 Most Carried 10 | 6 10 10 Average Carried 6 | 3 6 10 Final Capacity 10 | 8 10 10 Final Carried 10 | 6 10 10 Class Distribution -------------------- 100% | Mutant Dominant Class ---------------- Mutant | -10/Materials Mutant | -10/Subcaves Resources | -11 -10 -10 ----------- Run | Yrd Mat Sub Matter Collected 455 | 190 224 41 Remotely . | . . . Salvage Created 630 | . 552 78 Parts 40 | . 33 7 Haulers Intercepted 1 | . 1 . Recyclers Shooed 2 | . 2 . Parts Field Recycled . | . . . Retrieved Matter . | . . . Parts Self-Destructed 5 | . . 5 Prevented . | . . . Kills | -11 -10 -10 ------- Run | Yrd Mat Sub Combat Hostiles Destroyed 14 | . 12 2 Guns 13 | . 12 1 AOE 1 | . . 1 Classes Destroyed 7 | . 6 1 Worker 2 | . 2 . Hauler 1 | . 1 . Operator 1 | . 1 . Watcher 3 | . 3 . Swarmer 3 | . 3 . Grunt 9 | . 9 . Subdweller 2 | . . 2 Best Kill Streak 5 | . 5 1 Combat Bots Only 4 | . 4 1 Max Kills in Single Turn 1 | . 1 1 Gunslinging . | . . . Exploded 1 | . . 1 Melee . | . . . Uniques/NPCs Destroyed . | . . . Combat | -11 -10 -10 -------- Run | Yrd Mat Sub Hostile Shots Fired 105 | . 75 30 Missed 19 | . 11 8 Damage Taken 1211 | . 696 515 Core 264 | . 112 152 Absorbed by Shields . | . . . Core Remaining (%) 100 | 100 . . Volleys Fired 85 | . 69 16 Largest 2 | . 2 2 Hottest 100 | . 76 100 Shots Fired 166 | . 138 28 Gun 158 | . 138 20 Cannon . | . . . Launcher 7 | . . 7 Special 1 | . . 1 Kinetic 80 | . 69 11 Thermal 78 | . 68 10 Explosive 7 | . . 7 Electromagnetic 1 | . 1 . Robot Hit Streak 17 | . 9 17 Robot Miss Streak 5 | . 5 1 Penetration Max . | . . . Secondary Targets 2 | . 2 . Max Gunslinging Chain 1 | . 1 . Shots Hit Robots 104 | . 85 19 Core Hits 43 | . 37 6 Critical Kills . | . . . Critical Parts Destroyed . | . . . Critical Strikes 4 | . 3 1 Burn 4 | . 3 1 Melee Attacks . | . . . Impact . | . . . Slashing . | . . . Piercing . | . . . Sneak Attacks . | . . . Combat Hostiles . | . . . Follow-up Attacks . | . . . Damage Inflicted 1237 | . 1007 230 Guns 1198 | . 1007 191 Cannons . | . . . Explosions 39 | . . 39 Melee . | . . . Ramming . | . . . Kinetic 415 | . 338 77 Thermal 768 | . 654 114 Explosive 39 | . . 39 Electromagnetic 15 | . 15 . Impact . | . . . Slashing . | . . . Piercing . | . . . Highest Corruption . | . . . Average Corruption . | . . . Corruption Purged . | . . . Corruption Blocked . | . . . Overload Shots . | . . . Overflow Damage 3 | . . 3 Projectiles . | . . . Explosions 3 | . . 3 Melee . | . . . Knockbacks . | . . . Impact . | . . . Kinetic . | . . . Secondary . | . . . Self-Inflicted Damage 34 | . . 34 Shots 1 | . . 1 Rammed . | . . . Targets Rammed . | . . . Kicked . | . . . Crushed . | . . . Highest Temperature 278 | . 278 1 Average Temperature 93 | . 95 1 Received Heat Transfer 414 | . 312 102 Effects 1 | . 1 . Interference 1 | . 1 . Siege Activations . | . . . Robots Corrupted . | . . . Combat Hostiles . | . . . Parts Fried . | . . . Impact Corruptions . | . . . Robots Melted . | . . . Combat Hostiles . | . . . Parts Melted 4 | . 4 . Heat Transferred 2405 | . 1998 407 Parts Sabotaged . | . . . Parts Stolen . | . . . Parts Stripped . | . . . Power Chain Reactions . | . . . Alert | -11 -10 -10 ------- Run | Yrd Mat Sub Peak Influence 210 | . 210 . Initial . | . . . Average 48 | . 51 . Maximum Alert Level 1 | . 1 . Low Security (%) 96 | 100 95 . Level 1 3 | . 4 . Level 2 . | . . . Level 3 . | . . . Level 4 . | . . . Level 5 . | . . . High Security . | . . . Max Security . | . . . Squads Dispatched 3 | . 3 . Investigation 2 | . 2 . Extermination . | . . . Reinforcement 1 | . 1 . Assault . | . . . Garrison . | . . . Intercept . | . . . Searches Triggered . | . . . Construction Impeded . | . . . Haulers Reinforced . | . . . Active Scanning Responses . | . . . Cargo Convoy Interrupts . | . . . Stealth | -11 -10 -10 --------- Run | Yrd Mat Sub Distress Signals 1 | . 1 . Communications Jammed . | . . . Distress Signals . | . . . Times Spotted 24 | . 21 3 Peak Tracking Total 5 | . 5 2 Tactical Retreats . | . . . Traps | -11 -10 -10 ------- Run | Yrd Mat Sub Traps Triggered 2 | . 2 . Indirectly . | . . . Trap Hack Attempts . | . . . Triggered . | . . . Disarmed . | . . . Reprogrammed . | . . . Reused . | . . . Traps Extracted . | . . . Installed . | . . . Triggered . | . . . Machines | -11 -10 -10 ---------- Run | Yrd Mat Sub Machines Disabled 1 | . 1 . Max in Single Turn 1 | . 1 . Machines Repaired . | . . . Machines Dismantled . | . . . Machines Sabotaged . | . . . Overloaded Fab Kills . | . . . Hacking | -11 -10 -10 --------- Run | Yrd Mat Sub Machines Accessed 3 | . 3 . Terminals 3 | . 3 . Fabricators . | . . . Repair Stations . | . . . Recycling Units . | . . . Scanalyzers . | . . . Garrison Access . | . . . Total Hacks 4 | . 4 . Successful 2 | . 2 . Failed 2 | . 2 . Catastrophic . | . . . Database Lockouts . | . . . Manual 3 | . 3 . Terminals 4 | . 4 . Fabricators . | . . . Repair Stations . | . . . Recycling Units . | . . . Scanalyzers . | . . . Garrison Access . | . . . Terminal Hacks 2 | . 2 . Recall Reinforcements 1 | . 1 . Hauler Manifests 1 | . 1 . Fabricator Hacks . | . . . Repair Station Hacks . | . . . Recycling Unit Hacks . | . . . Scanalyzer . | . . . Garrison Access Hacks . | . . . Unauthorized Hacks . | . . . Terminals . | . . . Fabricators . | . . . Repair Stations . | . . . Recycling Units . | . . . Scanalyzers . | . . . Garrison Access . | . . . Data Cores Recovered . | . . . Used . | . . . Hacking Detections 1 | . 1 . Full Trace Events . | . . . Feedback Events . | . . . Feedback Blocked . | . . . Robot Schematics Acquired . | . . . Robots Built . | . . . Authchips . | . . . Time . | . . . Total Robot Build Rating . | . . . Part Schematics Acquired . | . . . Parts Built . | . . . Authchips . | . . . Time . | . . . Total Part Build Rating . | . . . Parts Repaired . | . . . Time . | . . . Parts Recycled . | . . . Recycled Matter . | . . . Retrieved Matter . | . . . Retrieved Components . | . . . Parts Scanalyzed . | . . . Part Schematics Acquired . | . . . Parts Damaged . | . . . Bothacking | -11 -10 -10 ------------ Run | Yrd Mat Sub Used RIF Installer . | . . . Robots Hacked . | . . . Non-combat . | . . . Combat . | . . . Robot Hacks Applied . | . . . Relay Couplers Released . | . . . Fabnet Peak Effective % . | . . . Robots Rewired . | . . . Allies Hacked . | . . . Hacks Repelled . | . . . Allies | -11 -10 -10 -------- Run | Yrd Mat Sub Total Allies . | . . . Largest Group . | . . . Highest-Rated Group . | . . . Highest-Rated Ally . | . . . Total Orders . | . . . Ally Attacks . | . . . Total Damage . | . . . Kills . | . . . Allies Corrupted . | . . . Allies Melted . | . . . Intel | -11 -10 -10 ------- Run | Yrd Mat Sub Robot Analysis Total . | . . . Derelict Logs Recovered . | . . . Drone Launches . | . . . Drone Recoveries . | . . . Exploration | -11 -10 -10 ------------- Run | Yrd Mat Sub Turns Passed 1781 | 85 1498 198 Spaces Moved 1096 | 46 936 114 Core 2 | 2 . . Treads 333 | 44 289 . Legs 761 | . 647 114 Wheels . | . . . Hover . | . . . Flight . | . . . Fastest Speed 50 | 50 120 120 Average Speed 133 | 155 132 131 Slowest Speed 260 | 160 160 260 Overloaded Moves . | . . . Propulsion Burnouts . | . . . Robots Hopped . | . . . Cave-ins Triggered . | . . . Exploration Rate (%) 36 | 3 97 9 Regions Visited 2 Branch Regions 1 Pre-discovered Areas . | . . . Known Exits Taken 1 | . 1 . Unknown Exits Taken 1 | 1 . . Scrap Searched . | . . . Spaces Dug . | . . . Terrain Destroyed 29 | . . 29 Melee . | . . . Projectile . | . . . AOE 29 | . . 29 Terrain Rammed . | . . . Walls Destroyed . | . . . Machines Disabled . | . . . Actions | -11 -10 -10 --------- Run | Yrd Mat Sub Total 1259 | 57 1068 134 Wait 49 | . 49 . Move 1094 | 45 935 114 Hop . | . . . Pick Up 10 | 6 4 . Fast Attach 8 | 6 2 . Attach 4 | . 4 . Detach 1 | . 1 . Swap 8 | . 4 4 Drop . | . . . Fire 85 | . 69 16 Melee . | . . . Ram . | . . . Kick . | . . . Crush . | . . . Escape Stasis . | . . . Rewire . | . . . Trap . | . . . Miscellaneous . | . . . Route ------- -11/Scrapyard -10/Materials (discovered 5 exits: *Mat x3 / *Min / *Sub) -10/Subcaves History --------- Turn | Location | Event 16 | -11/Scrapyard | Discovered new exit (range 15) 86 | -11/Scrapyard | Entered Materials 306 | -10/Materials | Build established: Mutant 320 | -10/Materials | Discovered new exit (range 7) 657 | -10/Materials | Discovered new exit (range 16) 920 | -10/Materials | Discovered new exit (range 16) 1034 | -10/Materials | Discovered new exit (range 16) 1310 | -10/Materials | Identified exit to Mines 1447 | -10/Materials | Identified exit to Materials 1554 | -10/Materials | Discovered new exit (range 8) 1581 | -10/Materials | Identified exit to Subcaves 1584 | -10/Materials | Entered Subcaves 1628 | -10/Subcaves | A swath of the cavern ceiling suddenly collapsed 1696 | -10/Subcaves | Core integrity fell below 50% 1720 | -10/Subcaves | Core integrity fell below 20% 1779 | -10/Subcaves | Ambushed by Subdweller buried in earth 1782 | -10/Subcaves | Destroyed by W9-WVL(R) with Subdweller Laser Last Messages --------------- GOAL=ESCAPE A swath of the cavern ceiling suddenly collapses. 01700_ 2Q-4WH(R) suffers critical hit (Burn). 01720_ T0-21K(R) destroyed. 01723_ Subatomizers dissect the Sub. Optics. 01727_ 2Q-4WH(R) affixes Scrap Shield Fragment to Scrap Shield. 01743_ Acquired 41 matter. 01746_ Subatomizers dissect the Sub. Optics. 01771_ Aluminum Leg destroyed. 01777_ The unstable cave ceiling collapses. 01778_ 2Q-4WH(R) affixes Scrap Shield Fragment to Scrap Shield. 01779_ Grenade Launcher destroyed. 01780_ W9-WVL(R): "THANKSYOU!" 01782_ 2Q-4WH(R) destroyed. 01782_ Grenade Launcher destroyed. 01782_ Destroyed Grenade Launcher. Map ----- +----------------------------------------------------+ | ?????????????????????????????????????????????????? | | ?????????????????????????????????????????????????? | | ?????????????????????????????????????????????????? | | ?????????????????????????????????????????????????? | | ?????????????????????????????????????????????????? | | ?????????????????????????????????????????????????? | | ?????????????????????????????????????????????????? | | ?????????????????????????????????????????????????? | | ?????????????????????????????????????????????????? | | ?????????????????????????????????????????????????? | | ??????????????????? ?????????????????????????????? | | ??????????????????? ?????????????????????????????? | | ???????????????? ??????????????????????????? | | ???????????????? ??????????????????????????? | | ????????????????? ??????????????????????????? | | ?????????????????# ""#??????????????????????????? | | ?????????????????# ##?????????????????????????? | | ?????????????????? ##????????????????????????? | | ??????????????????? #????????????????????????? | | ???????????????????# #????????????????????????? | | ???????????????????# #????????????????????????? | | ??????????????????## #????????????????????????? | | ????????????????### ####?????????????????????? | | ????????????????# & #?????????????????????? | | ?????????????????# =%[ ###???????????????????? | | ??????????????????# !&@ #???????????????????? | | ??????????????????### #???????#???????????? | | ???????????????????# # #### #?????????? | | ???????????????????# # #?????????? | | ??????????????###??# #?? #?????????? | | ??????????????# ##?## ###????????????????? | | ??????????????# ### #??????????????????? | | ??????????????# #??????????????????? | | ??????????????## R #??????????????????? | | ?????????"?????## #??????????????????? | | ??????????" ???# ##??????????????????? | | ??????????? ??## ???????????????????? | | ???????????? ??# ###???? #????????????? | | ???????????## ## ;#?????# ????????????? | | ???????????# #" ## #"#??## # ???????????? | | ???????????# ## ###"## ????????????? | | ???????????# ## #"??"# ??????????????? | | ???????????# #" ##### ##??" ???????????????? | | ???????????#####" #???# ##?? # ????????????????? | | ???????????????# $##### ### #?????????????????? | | ???????????????## #"## #?????????????????? | | ????????????????# ""##??????????????????? | | ????????????????## ##???????????????????? | | ?????????????????### ##??????????????????? | | ???????????????????## ## ##?????????????????? | +----------------------------------------------------+ Best States ------------- Heat Dissipation 25 Energy Generation 10 Energy Capacity 250 Matter Stores 300 Matter Capacity 300 Sight Range 16 Terrain Scan Density 10 Evasion (%) 55 Recoil Reduction 2 Item Schematics ----------------- None Robot Schematics ------------------ None Fabricated ------------ Nothing Alien Tech Used ----------------- None Achievements -------------- None Challenges ------------ None Game ------ Seed AssemblyEnergyUnit Manual? 0 Play Time 00:19:36 Cumulative 35.1 hours Start 2024.04.18 @ 15:29:16 End 2024.04.18 @ 15:48:16 Sessions 1 Manual Loads 0 Difficulty Rogue Special Mode None Game No. 34 Rogue 22 Adventurer 12 Explorer 0 Win Type - Total 0 Types 0/0/0/0/0/0/0/0/0 Lore% 16 Gallery% 33 Achievement% 25 Wizard Run 0 Options --------- Layout 2 ASCII 0 Keyboard 0 Movement Mouse Keybinds 0 Fullscreen 1 Font 24/Smallcaps Map View 50x44 Zoom Use 0% Tactical HUD 1 Map Filters NONE Filters NONE Steam 1 RUN: f959c380-8b94-4c5a-bfa7-13fa73e90c26